Cogmind - Beta 13 @@@ ROGUE MODE // 2024.04.28 @ 15:13:48 Player: Oldman Pu Result: Destroyed by G-34 Mercenary with Small Laser Performance ------------- Evolutions (0) 0 Regions Visited (1) 200 Robots Destroyed (18) 90 Value Destroyed (388) 388 Prototype IDs (2) 40 Alien Tech Used (0) 0 Bonus (0) 0 TOTAL SCORE: 718 Bonus ------- None Cogmind --------- Core Integrity 0/250 Matter 108/300 Energy 237/250 System Corruption 2% Temperature Cool (42) Movement Rolling (95) Ox1 Location -10/Materials Parts ------- > --- POWER (1) -------- Ion Engine > --- PROPULSION (2) --- Wheel Wheel > --- UTILITY (2) ------ Heat Sink Large Storage Unit > --- WEAPON (2) ------- Medium Laser Beam Cannon > --- INVENTORY (15) --- Ion Engine Wheel Heat Sink High-capacity Battery (250) Light Armor Plating Light Armor Plating Peak State ------------ > --- POWER ------------ Light Ion Engine > --- PROPULSION ------- Wheel Compact Wheel > --- UTILITY ---------- Small Storage Unit Medium Matter Pod > --- WEAPON ----------- Light Assault Rifle Light Assault Rifle > --- INVENTORY -------- Light Assault Rifle Light Assault Rifle [Rating: 7] Favorites ----------- Power Ion Engine Engine Ion Engine Propulsion Wheel Wheel Wheel Utility Small Storage Unit Device Heat Sink Storage Small Storage Unit Protection Light Armor Plating Weapon Light Assault Rifle Energy Gun Medium Laser Energy Cannon Beam Cannon Ballistic Gun Light Assault Rifle Build | -11 -10 ------- Run | Yrd Mat Slots Evolved . | . . Power . | . . Propulsion . | . . Utility . | . . Weapon . | . . Parts Attached 30 | 6 24 Power 6 | 1 5 Engine 6 | 1 5 Core . | . . Reactor . | . . Propulsion 8 | 2 6 Treads . | . . Leg . | . . Wheel 8 | 2 6 Hover . | . . Flight . | . . Utility 8 | 1 7 Device 1 | . 1 Storage 5 | 1 4 Processor . | . . Hackware . | . . Protection 2 | . 2 Artifact . | . . Weapon 8 | 2 6 Energy Gun 2 | . 2 Energy Cannon 1 | . 1 Ballistic Gun 5 | 2 3 Ballistic Cannon . | . . Launcher . | . . Special Weapon . | . . Impact Weapon . | . . Slashing Weapon . | . . Piercing Weapon . | . . Special Melee Weapon . | . . Unidentified Prototypes . | . . Parts Lost 6 | . 6 Power 1 | . 1 Propulsion 2 | . 2 Utility 1 | . 1 Weapon 2 | . 2 Highest Loss Streak 6 | . 6 To Critical Strikes . | . . Average Slot Usage (%) 96 | . 96 Engine 13 | . 13 Wheel 27 | . 27 Storage 19 | . 19 Protection 7 | . 7 Energy Gun 5 | . 5 Ballistic Gun 21 | . 21 Naked Turns . | . . Heaviest Build 33 | 10 33 Greatest Support 26 | 26 26 Greatest Overweight (x) 2 | 1 2 Average Overweight (x) . | . . Largest Inventory Capacity 15 | 8 15 Average Capacity 9 | 7 10 Most Carried 9 | . 9 Average Carried 5 | . 5 Final Capacity 15 | 8 15 Final Carried 6 | . 6 Class Distribution -------------------- 96% | Mutant 3% | Scavenger-Mutant Dominant Class ---------------- Mutant | -10/Materials Resources | -11 -10 ----------- Run | Yrd Mat Matter Collected 530 | 177 353 Remotely . | . . Salvage Created 580 | . 580 Parts 37 | . 37 Haulers Intercepted 2 | . 2 Recyclers Shooed . | . . Parts Field Recycled . | . . Retrieved Matter . | . . Parts Self-Destructed . | . . Prevented . | . . Kills | -11 -10 ------- Run | Yrd Mat Combat Hostiles Destroyed 11 | . 11 Guns 11 | . 11 Classes Destroyed 6 | . 6 Worker 1 | . 1 Tunneler 1 | . 1 Hauler 2 | . 2 Watcher 3 | . 3 Swarmer 3 | . 3 Grunt 8 | . 8 Best Kill Streak 3 | . 3 Combat Bots Only 3 | . 3 Max Kills in Single Turn 1 | . 1 Gunslinging . | . . Exploded . | . . Melee . | . . Uniques/NPCs Destroyed . | . . Combat | -11 -10 -------- Run | Yrd Mat Hostile Shots Fired 106 | . 106 Missed 26 | . 26 Damage Taken 1010 | . 1010 Core 254 | . 254 Absorbed by Shields . | . . Core Remaining (%) 100 | 100 . Volleys Fired 115 | . 115 Largest 2 | . 2 Hottest 110 | . 110 Shots Fired 230 | . 230 Gun 225 | . 225 Cannon 5 | . 5 Launcher . | . . Special . | . . Kinetic 195 | . 195 Thermal 35 | . 35 Explosive . | . . Electromagnetic . | . . Robot Hit Streak 12 | . 12 Robot Miss Streak 10 | . 10 Penetration Max . | . . Secondary Targets 1 | . 1 Max Gunslinging Chain 1 | . 1 Shots Hit Robots 147 | . 147 Core Hits 43 | . 43 Critical Kills 1 | . 1 Critical Parts Destroyed 2 | . 2 Critical Strikes 5 | . 5 Burn 2 | . 2 Destroy 3 | . 3 Melee Attacks . | . . Impact . | . . Slashing . | . . Piercing . | . . Sneak Attacks . | . . Combat Hostiles . | . . Follow-up Attacks . | . . Damage Inflicted 1333 | . 1333 Guns 1262 | . 1262 Cannons 71 | . 71 Explosions . | . . Melee . | . . Ramming . | . . Kinetic 1010 | . 1010 Thermal 323 | . 323 Explosive . | . . Electromagnetic . | . . Impact . | . . Slashing . | . . Piercing . | . . Highest Corruption 2 | . 2 Average Corruption 2 | . 2 Corruption Purged . | . . Corruption Blocked . | . . Effects 4 | . 4 Matter Fused 2 | . 2 Energy Discharges 1 | . 1 Misfires 1 | . 1 Overload Shots . | . . Overflow Damage . | . . Projectiles . | . . Explosions . | . . Melee . | . . Knockbacks . | . . Impact . | . . Kinetic . | . . Secondary . | . . Self-Inflicted Damage . | . . Shots . | . . Rammed . | . . Targets Rammed . | . . Kicked . | . . Crushed . | . . Highest Temperature 337 | . 337 Average Temperature 71 | . 71 Received Heat Transfer 558 | . 558 Effects 1 | . 1 Matter Decay 1 | . 1 Siege Activations . | . . Robots Corrupted . | . . Combat Hostiles . | . . Parts Fried . | . . Impact Corruptions . | . . Robots Melted . | . . Combat Hostiles . | . . Parts Melted 2 | . 2 Heat Transferred 1036 | . 1036 Parts Sabotaged . | . . Parts Stolen . | . . Parts Stripped . | . . Power Chain Reactions . | . . Alert | -11 -10 ------- Run | Yrd Mat Peak Influence 219 | . 219 Initial . | . . Average 68 | . 70 Maximum Alert Level 1 | . 1 Low Security (%) 89 | 100 88 Level 1 10 | . 11 Level 2 . | . . Level 3 . | . . Level 4 . | . . Level 5 . | . . High Security . | . . Max Security . | . . Squads Dispatched 2 | . 2 Investigation 2 | . 2 Extermination . | . . Reinforcement . | . . Assault . | . . Garrison . | . . Intercept . | . . Searches Triggered . | . . Construction Impeded . | . . Haulers Reinforced . | . . Active Scanning Responses . | . . Cargo Convoy Interrupts . | . . Stealth | -11 -10 --------- Run | Yrd Mat Distress Signals . | . . Communications Jammed . | . . Distress Signals . | . . Times Spotted 28 | . 28 Peak Tracking Total 3 | . 3 Tactical Retreats 1 | . 1 Traps | -11 -10 ------- Run | Yrd Mat Traps Triggered 3 | . 3 Indirectly . | . . Trap Hack Attempts . | . . Triggered . | . . Disarmed . | . . Reprogrammed . | . . Reused . | . . Traps Extracted . | . . Installed . | . . Triggered . | . . Machines | -11 -10 ---------- Run | Yrd Mat Machines Disabled . | . . Max in Single Turn . | . . Machines Repaired . | . . Machines Dismantled . | . . Machines Sabotaged . | . . Overloaded Fab Kills . | . . Hacking | -11 -10 --------- Run | Yrd Mat Machines Accessed 5 | . 5 Terminals 5 | . 5 Fabricators . | . . Repair Stations . | . . Recycling Units . | . . Scanalyzers . | . . Garrison Access . | . . Total Hacks 13 | . 13 Successful 7 | . 7 Failed 6 | . 6 Catastrophic 1 | . 1 Database Lockouts . | . . Manual . | . . Terminals 13 | . 13 Fabricators . | . . Repair Stations . | . . Recycling Units . | . . Scanalyzers . | . . Garrison Access . | . . Terminal Hacks 7 | . 7 Prototype ID Bank 1 | . 1 Emergency Access Points 1 | . 1 Locate Traps 2 | . 2 Dispatch Records 1 | . 1 Hauler Manifests 1 | . 1 Zone Layout 1 | . 1 Fabricator Hacks . | . . Repair Station Hacks . | . . Recycling Unit Hacks . | . . Scanalyzer . | . . Garrison Access Hacks . | . . Unauthorized Hacks . | . . Terminals . | . . Fabricators . | . . Repair Stations . | . . Recycling Units . | . . Scanalyzers . | . . Garrison Access . | . . Data Cores Recovered . | . . Used . | . . Hacking Detections 4 | . 4 Full Trace Events 1 | . 1 Feedback Events . | . . Feedback Blocked . | . . Robot Schematics Acquired . | . . Robots Built . | . . Authchips . | . . Time . | . . Total Robot Build Rating . | . . Part Schematics Acquired . | . . Parts Built . | . . Authchips . | . . Time . | . . Total Part Build Rating . | . . Parts Repaired . | . . Time . | . . Parts Recycled . | . . Recycled Matter . | . . Retrieved Matter . | . . Retrieved Components . | . . Parts Scanalyzed . | . . Part Schematics Acquired . | . . Parts Damaged . | . . Bothacking | -11 -10 ------------ Run | Yrd Mat Used RIF Installer . | . . Robots Hacked . | . . Non-combat . | . . Combat . | . . Robot Hacks Applied . | . . Relay Couplers Released . | . . Fabnet Peak Effective % . | . . Robots Rewired . | . . Allies Hacked . | . . Hacks Repelled . | . . Allies | -11 -10 -------- Run | Yrd Mat Total Allies . | . . Largest Group . | . . Highest-Rated Group . | . . Highest-Rated Ally . | . . Total Orders . | . . Ally Attacks . | . . Total Damage . | . . Kills . | . . Allies Corrupted . | . . Allies Melted . | . . Intel | -11 -10 ------- Run | Yrd Mat Robot Analysis Total . | . . Derelict Logs Recovered . | . . Drone Launches . | . . Drone Recoveries . | . . Exploration | -11 -10 ------------- Run | Yrd Mat Turns Passed 1399 | 36 1363 Spaces Moved 1023 | 32 991 Core 11 | 11 . Treads . | . . Legs . | . . Wheels 1012 | 21 991 Hover . | . . Flight . | . . Fastest Speed 50 | 50 80 Average Speed 90 | 85 90 Slowest Speed 110 | 100 110 Overloaded Moves . | . . Propulsion Burnouts . | . . Robots Hopped . | . . Cave-ins Triggered . | . . Exploration Rate (%) 50 | 4 96 Regions Visited 1 Branch Regions . Pre-discovered Areas . | . . Known Exits Taken . | . . Unknown Exits Taken 1 | 1 . Scrap Searched . | . . Spaces Dug . | . . Terrain Destroyed . | . . Melee . | . . Projectile . | . . AOE . | . . Terrain Rammed . | . . Walls Destroyed . | . . Machines Disabled . | . . Actions | -11 -10 --------- Run | Yrd Mat Total 1304 | 37 1267 Wait 109 | . 109 Move 1022 | 31 991 Hop . | . . Pick Up 15 | . 15 Fast Attach 8 | 6 2 Attach 6 | . 6 Detach . | . . Swap 16 | . 16 Drop 13 | . 13 Fire 115 | . 115 Melee . | . . Ram . | . . Kick . | . . Crush . | . . Escape Stasis . | . . Rewire . | . . Trap . | . . Miscellaneous . | . . Route ------- -11/Scrapyard -10/Materials (discovered 3 exits: [*Mat x2] / [*Min]) History --------- Turn | Location | Event 14 | -11/Scrapyard | Discovered new exit (range 15) 37 | -11/Scrapyard | Entered Materials 165 | -10/Materials | Discovered new exit (range 16) 303 | -10/Materials | Build established: Mutant 304 | -10/Materials | Discovered new exit (range 13) 571 | -10/Materials | Discovered new exit (range 16) 838 | -10/Materials | Core integrity fell below 50% 1239 | -10/Materials | Core integrity fell below 20% 1279 | -10/Materials | Lost 6 parts (1p2n1u2w) 1400 | -10/Materials | Destroyed by G-34 Mercenary with Small Laser Last Messages --------------- 01267_ W-16 Scout destroyed. 01271_ R-06 Scavenger collects Signal Interpreter. 01274_ R-06 Scavenger collects Visual Processing Unit. 01276_ Acquired Beam Cannon. 01320_ Acquired Lgt. Armor Plating. 01322_ Dropped Lgt. Assault Rifle. 01325_ System corrupted: Energy discharge (-14). 01331_ R-06 Scavenger collects Lgt. Assault Rifle. 01341_ System corrupted: FCS attempts to trigger Med. Laser. 01341_ System corrupted: Med. Laser misfires. 01341_ Acquired Heat Sink. 01343_ Acquired Lgt. Armor Plating. 01345_ Acquired Heat Sink. 01368_ System corrupted: Matter fused (-6). 01373_ Triggered Alarm Trap. 01373_ An alarm sounds. 01373_ ALERT: Alarm triggered, dispatching investigation squad. 01390_ Heat Sink melted. 01390_ G-34 Mercenary destroyed. 01398_ R-06 Scavenger collects Sml. Laser. Map ----- +----------------------------------------------------+ | ########## # #?????# | | ?????????# * # ! #?????### | | ???#?##### # #???????## | | ???# # " #????????# | | ???# # """ #????????? | | ???# """ # "" ########## | | ???# """"" # """ # | | ???# """"" # "" # | | ???# """"" # """ # """ | | ???# """ + """ # """ "" | | ??##+##+## # """ # """ R | | ??# # # " # "" | | ??# """ # #####+### # | | ??# "Y [# ## ################# | | ??# """ # ## #???????????????? | | ??# + ## ! #???????????????? | | ??# # ## !! #???????????????? | | ########## ## !! #???????????????? | | # # + #???????????????? | | # "" # ########???????????????? | | # T" # #######????????????????? | | #!!! "" # #????????????????? | | #!!! + #????????????????? | | #!! """ # % #????????????????? | | # """ ###g## #????????????????? | | # """ ##@ g# #????????????????? | | # ## #? #????????????????? | | ?########## #?? #????????????????? | | ??????????# ] #???#????????????????? | | ??????????# #????????????????????? | | ??????????# #????????????????????? | | ??????????# #????????????????????? | | ??????????#####????????????????????? | | ???????????????????????????????????? | | ???????????????????????????????????? | | ???????????????????????????????????? | | ???????????????????????????????????? | | ???????????????????????????????????? | | | | | | | | | | | | | | | | | | | | | | | | | +----------------------------------------------------+ Best States ------------- Heat Dissipation 35 Energy Generation 10 Energy Capacity 500 Matter Stores 270 Matter Capacity 400 Sight Range 16 Terrain Scan Density 10 Armor Coverage 150 Evasion (%) 44 Item Schematics ----------------- None Robot Schematics ------------------ None Fabricated ------------ Nothing Alien Tech Used ----------------- None Achievements -------------- None Challenges ------------ None Game ------ Seed MassTrapTrap Manual? 0 Play Time 00:18:14 Cumulative 284.8 hours Start 2024.04.28 @ 14:44:10 End 2024.04.28 @ 15:13:48 Sessions 1 Manual Loads 0 Difficulty Rogue Special Mode None Game No. 229 Rogue 217 Adventurer 12 Explorer 0 Win Type - Total 1 Types 1/0/0/0/0/0/0/0/0 Lore% 33 Gallery% 51 Achievement% 37 Wizard Run 0 Options --------- Layout 1 ASCII 0 Keyboard 0 Movement Mouse Keybinds 0 Fullscreen 1 Font 32/SmallcapsGlow Map View 77x35 Zoom Use 0% Tactical HUD 1 Map Filters NONE Filters NONE Steam 1 RUN: ba6cf6a4-d61d-47fe-847a-05c24333de6c